[Event "Lliga Catalana 2024"]
[Site "Catalonia"]
[Date "2024.02.24"]
[Round "6.8"]
[White "Nadal Fajardo, Ricard"]
[Black "Serra Canals, Oriol"]
[Result "1/2-1/2"]
[ECO "D05"]
[WhiteElo "2025"]
[BlackElo "2158"]
[Annotator "ChessBase"]
[PlyCount "138"]
[EventDate "2024.01.18"]
[EventType "team-tourn"]
[EventCountry "ESP"]
[SourceTitle "playchess.com"]
[Source "ChessBase"]
[SourceQuality "1"]
[TimeControl "5400+30"]

1. d4 {[%emt 0:00:03]} e6 {[%emt 0:01:24]} 2. Nf3 {[%emt 0:00:46]} Nf6 {[%emt 0:00:22]} 3. Nbd2 {[%emt 0:00:39]} d5 {[%emt 0:02:37]} 4. e3 {[%emt 0:00:25]} c5 {[%emt 0:01:49]} 5. c3 {[%emt 0:02:29]} Nc6 {[%emt 0:04:30]} 6. Bd3 {[%emt 0:03:29]} Qc7 {[%emt 0:03:23]} 7. Qe2 {[%emt 0:02:41]} Be7 {[%emt 0:06:24]} 8. dxc5 {[%emt 0:09:24]} Bxc5 {[%emt 0:05:50]} 9. e4 {[%emt 0:00:39]} O-O {[%emt 0:07:08]} 10. O-O {[%emt 0:13:14]} h6 {[%emt 0:08:50]} 11. h3 {[%emt 0:12:30]} e5 {[%emt 0:04:58]} 12. exd5 {[%emt 0:17:12]} Nxd5 {[%emt 0:01:09]} 13. Nb3 {[%emt 0:00:09]} Bb6 {[%emt 0:04:08]} 14. c4 {[%emt 0:11:20]} Nf6 {[%emt 0:07:20]} 15. c5 {[%emt 0:00:55]} Ba5 {[%emt 0:05:54]} 16. Nxa5 {[%emt 0:02:02]} Qxa5 {[%emt 0:00:26]} 17. Nxe5 {[%emt 0:01:00]} Nd4 {[%emt 0:04:33]} 18. Qe3 {[%emt 0:03:23]} Qxc5 {[%emt 0:02:30]} 19. b4 {[%emt 0:03:59]} Qxb4 {[%emt 0:17:45]} 20. Ba3 {[%emt 0:02:41]} Qxa3 {[%emt 0:00:04]} 21. Bh7+ {[%emt 0:00:10]} Nxh7 {[%emt 0:00:05]} 22. Qxa3 {[%emt 0:00:05]} Nc2 {[%emt 0:00:06]} 23. Qb3 {[%emt 0:02:36]} Nxa1 {[%emt 0:00:04]} 24. Rxa1 {[%emt 0:00:07]} Rb8 {[%emt 0:01:11]} 25. Qa3 {[%emt 0:03:44]} a6 {[%emt 0:00:38]} 26. Rc1 {[%emt 0:01:22]} Nf6 {[%emt 0:00:25]} 27. Nc4 {[%emt 0:03:20]} Be6 {[%emt 0:04:40]} 28. Nb6 {[%emt 0:00:13]} Nd5 {[%emt 0:00:42]} 29. Nxd5 {[%emt 0:00:15]} Bxd5 {[%emt 0:00:04]} 30. Rd1 {[%emt 0:00:28]} Be6 {[%emt 0:00:43]} 31. Qa5 {[%emt 0:00:40]} Rbc8 {[%emt 0:01:59]} 32. a3 {[%emt 0:00:56]} Rc6 {[%emt 0:00:28]} 33. Qb4 {[%emt 0:01:43]} b5 {[%emt 0:00:20]} 34. Qe7 {[%emt 0:01:06]} Rfc8 {[%emt 0:01:52]} 35. Rd6 {[%emt 0:01:26]} Kh7 {[%emt 0:02:16]} 36. Rxc6 {[%emt 0:00:35]} Rxc6 {[%emt 0:00:08]} 37. Qb7 {[%emt 0:00:16]} Rd6 {[%emt 0:00:31]} 38. Kh2 {[%emt 0:00:24]} Bc4 {[%emt 0:00:04]} 39. Qc7 {[%emt 0:00:43]} Rf6 {[%emt 0:00:15]} 40. Qc5 {[%emt 0:00:21]} Re6 {[%emt 0:00:49]} 41. Qf5+ {[%emt 0:00:21]} Kg8 {[%emt 0:00:03]} 42. Qc5 {[%emt 0:00:10]} Re2 {[%emt 0:00:06]} 43. Kg3 {[%emt 0:00:51]} Re6 {[%emt 0:00:54]} 44. Kh2 {[%emt 0:00:16]} g6 {[%emt 0:00:23]} 45. Kg3 {[%emt 0:00:29]} Kh7 {[%emt 0:00:05]} 46. h4 {[%emt 0:00:26]} h5 {[%emt 0:00:08]} 47. Qc7 {[%emt 0:00:24]} Re4 {[%emt 0:00:12]} 48. f3 {[%emt 0:00:28]} Re3 {[%emt 0:00:20]} 49. Qc5 {[%emt 0:00:11]} Rb3 {[%emt 0:00:23]} 50. Kf4 {[%emt 0:01:19]} Rd3 {[%emt 0:00:38]} 51. Kg3 {[%emt 0:00:33]} Be6 {[%emt 0:01:36]} 52. Kh2 {[%emt 0:00:37]} a5 {[%emt 0:01:23]} 53. Kg3 {[%emt 0:00:41]} Rb3 {[%emt 0:01:22]} 54. Kf4 {[%emt 0:00:19]} b4 {[%emt 0:00:18]} 55. axb4 {[%emt 0:00:09]} Rxb4+ {[%emt 0:01:08]} 56. Kg5 {[%emt 0:00:22]} Bc4 {[%emt 0:00:29]} 57. Kf6 {[%emt 0:00:17]} Bb5 {[%emt 0:00:37]} 58. Kxf7 {[%emt 0:00:30]} Rf4+ {[%emt 0:00:19]} 59. Ke7 {[%emt 0:00:15]} Rf5 {[%emt 0:00:07]} 60. Qc7 {[%emt 0:00:39]} a4 {[%emt 0:00:49]} 61. Ke6+ {[%emt 0:00:23]} Kh6 {[%emt 0:00:40]} 62. Qc1+ {[%emt 0:00:38]} Kg7 {[%emt 0:00:09]} 63. Qc3+ {[%emt 0:00:28]} Kg8 {[%emt 0:00:10]} 64. g4 {[%emt 0:00:28]} hxg4 {[%emt 0:00:30]} 65. fxg4 {[%emt 0:00:08]} Rf7 {[%emt 0:00:43]} 66. Qc8+ {[%emt 0:01:34]} Kg7 {[%emt 0:00:04]} 67. Qc3+ {[%emt 0:00:09]} Kg8 {[%emt 0:00:06]} 68. Qc8+ {[%emt 0:00:53]} Kg7 {[%emt 0:00:58]} 69. Qc3+ {[%emt 0:00:09]} Kg8 {[%emt 0:00:05]} 1/2-1/2

[Event "Lliga Catalana 2024"]
[Site "Catalonia"]
[Date "2024.02.24"]
[Round "6.9"]
[White "Prada Villagrasa, Pau Manel"]
[Black "Serra Pages, Jordi"]
[Result "1/2-1/2"]
[ECO "B33"]
[WhiteElo "2131"]
[BlackElo "2187"]
[Annotator "RC"]
[PlyCount "130"]
[EventDate "2024.01.18"]
[EventType "team-tourn"]
[EventCountry "ESP"]
[SourceTitle "playchess.com"]
[Source "ChessBase"]
[SourceQuality "1"]
[TimeControl "5400+30"]

1. e4 {[%emt 0:00:04]} c5 {[%emt 0:00:11]} 2. Nf3 {[%emt 0:00:13]} Nc6 {[%emt 0:00:40]} 3. d4 {[%emt 0:00:06]} cxd4 {[%emt 0:00:08]} 4. Nxd4 {[%emt 0:00:05]} Nf6 {[%emt 0:00:06]} 5. Nc3 {[%emt 0:00:13]} e5 {[%emt 0:00:16]} 6. Ndb5 {[%emt 0:03:27]} d6 {[%emt 0:00:31]} 7. Bg5 {[%emt 0:01:13]} a6 {[%emt 0:00:22]} 8. Na3 {[%emt 0:01:56]} b5 {[%emt 0:00:39]} 9. Nd5 {[%emt 0:00:56]} Be7 {[%emt 0:01:11]} 10. Bxf6 {[%emt 0:01:24]} Bxf6 {[%emt 0:00:07]} 11. c3 {[%emt 0:00:46]} O-O {[%emt 0:01:06]} 12. Nc2 {[%emt 0:02:32]} Rb8 {[%emt 0:12:28]} 13. Be2 {[%emt 0:01:27]} Bg5 {[%emt 0:01:06]} 14. O-O {[%emt 0:01:20]} Ne7 {[%emt 0:04:00]} 15. Nce3 {[%emt 0:03:39]} Bxe3 {[%emt 0:12:33]} 16. Nxe3 {[%emt 0:00:37]} Bb7 {[%emt 0:01:55]} 17. Bf3 {[%emt 0:00:45]} Qd7 {[%emt 0:10:26]} 18. Qd3 {[%emt 0:07:16]} f5 {[%emt 0:19:29]} 19. Rad1 {[%emt 0:04:12]} Rbd8 {[%emt 0:15:53]} 20. c4 {[%emt 0:07:23]} fxe4 {[%emt 0:11:09]} 21. Bxe4 {[%emt 0:00:05]} Bxe4 {[%emt 0:00:08]} 22. Qxe4 {[%emt 0:00:04]} Rf4 {[%emt 0:00:15]} 23. Qd3 {[%emt 0:02:22]} Qe6 {[%emt 0:05:01]} 24. cxb5 {[%emt 0:03:07]} Rd4 {[%emt 0:00:48]} 25. Qe2 {[%emt 0:02:36]} axb5 {[%emt 0:01:43]} 26. Qxb5 {[%emt 0:00:11]} Rxd1 {[%emt 0:00:39]} 27. Rxd1 {[%emt 0:00:16]} Qxa2 {[%emt 0:00:04]} 28. Nc4 {[%emt 0:01:43]} Nf5 {[%emt 0:01:04]} 29. Nxe5 {[%emt 0:01:14]} Qe6 {[%emt 0:00:26]} 30. Nc6 {[%emt 0:05:10]} Re8 {[%emt 0:00:25]} 31. h3 {[%emt 0:00:21]} h6 {[%emt 0:00:39]} 32. Qd5 {[%emt 0:01:21]} Qxd5 {[%emt 0:00:07]} 33. Rxd5 {[%emt 0:00:05]} Ne7 {[%emt 0:00:52]} 34. Rxd6 {[%emt 0:49:21]} Nxc6 {[%emt 0:00:15]} 35. Rxc6 {[%emt 0:00:00]} Re1+ {[%emt 0:00:02]} 36. Kh2 {[%emt 0:00:00]} Re2 {[%emt 0:00:02]} 37. b4 {[%emt 0:00:00]} Rb2 {[%emt 0:01:05]} 38. Rc4 {[%emt 0:00:00]} Rxf2 {[%emt 0:00:05]} 39. Kg3 {[%emt 0:00:00]} Rb2 {[%emt 0:00:05]} 40. Rf4 {[%emt 0:00:00]} g5 {[%emt 0:01:34]} 41. Rd4 {[%emt 0:00:00]} Kf7 {[%emt 0:00:42]} 42. Kf3 {[%emt 0:00:00]} Ke6 {[%emt 0:00:31]} 43. g3 {[%emt 0:00:00]} h5 {[%emt 0:00:39]} 44. h4 {[%emt 0:00:00]} Rb3+ {[%emt 0:00:10]} 45. Kf2 {[%emt 0:00:00]} Rb2+ {[%emt 0:00:37]} 46. Kf1 {[%emt 0:00:00]} Rb1+ {[%emt 0:00:41]} 47. Ke2 {[%emt 0:00:00]} Rb2+ {[%emt 0:00:16]} 48. Ke1 {[%emt 0:00:00]} Rb1+ {[%emt 0:00:23]} 49. Kd2 {[%emt 0:00:00]} Rb3 {[%emt 0:00:47]} 50. g4 {[%emt 0:00:00]} hxg4 {[%emt 0:00:15]} 51. hxg5 {[%emt 0:00:00]} Kf5 {[%emt 0:00:31]} 52. g6 {[%emt 0:00:00]} Kxg6 {[%emt 0:00:51]} 53. Rxg4+ {[%emt 0:00:00]} Kf5 {[%emt 0:00:16]} 54. Kc2 {[%emt 0:00:00]} Ra3 {[%emt 0:00:35]} 55. Kb2 {[%emt 0:00:00]} Rh3 {[%emt 0:00:34]} 56. Rd4 {[%emt 0:00:00]} Ke5 {[%emt 0:00:16]} 57. Rd8 {[%emt 0:00:00]} Ke6 {[%emt 0:00:30]} 58. Rd4 {[%emt 0:00:00]} Ke5 {[%emt 0:00:13]} 59. Rd2 {[%emt 0:00:00]} Ke6 {[%emt 0:00:38]} 60. Rd8 {[%emt 0:00:00]} Rg3 {[%emt 0:00:27]} 61. Rd2 {[%emt 0:00:00]} Rh3 {[%emt 0:00:12]} 62. Ka2 {[%emt 0:00:00]} Rg3 {[%emt 0:00:32]} 63. b5 {[%emt 0:00:00]} Rg5 {[%emt 0:00:37]} 64. Rb2 {[%emt 0:00:00]} Kd6 {[%emt 0:00:45]} 65. b6 {[%emt 0:00:00]} Ra5+ {[%emt 0:00:31]} 1/2-1/2

[Event "Lliga Catalana 2024"]
[Site "Catalonia"]
[Date "2024.02.24"]
[Round "6.9"]
[White "Martinez Lopez, Carlos"]
[Black "Chigaeva, Anastasia"]
[Result "1/2-1/2"]
[ECO "B38"]
[WhiteElo "2006"]
[BlackElo "2106"]
[Annotator "NA"]
[PlyCount "43"]
[EventDate "2024.01.18"]
[EventType "team-tourn"]
[EventCountry "ESP"]
[SourceTitle "playchess.com"]
[Source "ChessBase"]
[SourceQuality "1"]
[TimeControl "5400+30"]

1. e4 {[%emt 0:00:06]} c5 {[%emt 0:00:15]} 2. Nf3 {[%emt 0:00:03]} Nc6 {[%emt 0:00:15]} 3. d4 {[%emt 0:00:05]} cxd4 {[%emt 0:00:09]} 4. Nxd4 {[%emt 0:00:05]} g6 {[%emt 0:00:15]} 5. c4 {[%emt 0:00:25]} Bg7 {[%emt 0:00:17]} 6. Be3 {[%emt 0:00:02]} Nf6 {[%emt 0:00:28]} 7. Nc3 {[%emt 0:00:12]} d6 {[%emt 0:00:29]} 8. Be2 {[%emt 0:02:20]} O-O {[%emt 0:00:44]} 9. O-O {[%emt 0:01:38]} Bd7 {[%emt 0:00:13]} 10. f3 {[%emt 0:08:20]} Nxd4 {[%emt 0:02:25]} 11. Bxd4 {[%emt 0:00:56]} Bc6 {[%emt 0:00:12]} 12. Qd2 {[%emt 0:03:08]} a5 {[%emt 0:00:23]} 13. b3 {[%emt 0:08:27]} Nd7 {[%emt 0:00:19]} 14. Bxg7 {[%emt 0:00:19]} Kxg7 {[%emt 0:00:09]} 15. Qd4+ {[%emt 0:00:23]} Kg8 {[%emt 0:01:44]} 16. a3 {[%emt 0:02:45]} Qb6 {[%emt 0:08:34]} 17. Qxb6 {[%emt 0:01:39]} Nxb6 {[%emt 0:00:02]} 18. Nd5 {[%emt 0:03:49]} Bxd5 {[%emt 0:03:56]} 19. cxd5 {[%emt 0:04:07]} Rfc8 {[%emt 0:02:39]} 20. Rfc1 {[%emt 0:02:50]} g5 {[%emt 0:06:39]} 21. Bb5 {[%emt 0:02:08]} Kg7 {[%emt 0:02:27]} 22. Kf2 {[%emt 0:00:40]} 1/2-1/2

[Event "Lliga Catalana 2024"]
[Site "Catalonia"]
[Date "2024.02.24"]
[Round "6.10"]
[White "Pinsach Gelabert, Alexandre"]
[Black "Jareno Badenas, Aleix"]
[Result "1-0"]
[ECO "C02"]
[WhiteElo "2150"]
[BlackElo "2122"]
[Annotator "RC"]
[PlyCount "37"]
[EventDate "2024.01.18"]
[EventType "team-tourn"]
[EventCountry "ESP"]
[SourceTitle "playchess.com"]
[Source "ChessBase"]
[SourceQuality "1"]
[TimeControl "5400+30"]

1. e4 {[%emt 0:00:04]} e6 {[%emt 0:00:05]} 2. d4 {[%emt 0:00:16]} d5 {[%emt 0:00:06]} 3. e5 {[%emt 0:00:11]} c5 {[%emt 0:00:06]} 4. c3 {[%emt 0:00:08]} Nc6 {[%emt 0:00:06]} 5. Nf3 {[%emt 0:00:08]} Qb6 {[%emt 0:00:05]} 6. Bd3 {[%emt 0:00:11]} cxd4 {[%emt 0:02:13]} 7. O-O {[%emt 0:00:07]} Bd7 {[%emt 0:00:38]} 8. Re1 {[%emt 0:00:06]} Nge7 {[%emt 0:14:30]} 9. h4 {[%emt 0:00:18]} Nf5 {[%emt 0:04:05]} 10. Bxf5 {[%emt 0:16:25]} exf5 {[%emt 0:00:07]} 11. cxd4 {[%emt 0:01:26]} Be7 {[%emt 0:10:00]} 12. Nc3 {[%emt 0:01:23]} Be6 {[%emt 0:01:19]} 13. Rb1 {[%emt 0:05:22]} O-O {[%emt 0:06:21]} 14. Bg5 {[%emt 0:04:33]} Bb4 {[%emt 0:05:29]} 15. Qd3 {[%emt 0:09:46]} Bxc3 {[%emt 0:10:30]} 16. Qxc3 {[%emt 0:01:19]} Rfc8 {[%emt 0:07:00]} 17. Qd2 {[%emt 0:02:09]} Qb4 {[%emt 0:16:33]} 18. Rec1 {[%emt 0:02:50]} h6 {[%emt 0:01:36]} 19. Rxc6 {[%emt 0:03:33]} 1-0

[Event "Lliga Catalana 2024"]
[Site "Catalonia"]
[Date "2024.02.24"]
[Round "6.10"]
[White "Diaz Comas, Jordi"]
[Black "Albet Serra, Jordi"]
[Result "1/2-1/2"]
[ECO "B29"]
[WhiteElo "1836"]
[BlackElo "1918"]
[Annotator "ChessBase"]
[PlyCount "112"]
[EventDate "2024.01.18"]
[EventType "team-tourn"]
[EventCountry "ESP"]
[SourceTitle "playchess.com"]
[Source "ChessBase"]
[SourceQuality "1"]
[TimeControl "5400+30"]

1. e4 {[%emt 0:00:02]} c5 {[%emt 0:00:06]} 2. Nf3 {[%emt 0:00:09]} Nf6 {[%emt 0:00:16]} 3. e5 {[%emt 0:01:10]} Nd5 {[%emt 0:00:08]} 4. Nc3 {[%emt 0:00:28]} Nxc3 {[%emt 0:00:53]} 5. bxc3 {[%emt 0:02:30]} e6 {[%emt 0:02:49]} 6. d4 {[%emt 0:01:01]} d5 {[%emt 0:01:31]} 7. Bd3 {[%emt 0:06:06]} Qa5 {[%emt 0:07:58]} 8. Bd2 {[%emt 0:00:53]} c4 {[%emt 0:00:53]} 9. Be2 {[%emt 0:00:27]} Ba3 {[%emt 0:00:16]} 10. Rb1 {[%emt 0:04:09]} Nc6 {[%emt 0:01:43]} 11. O-O {[%emt 0:00:54]} h6 {[%emt 0:01:57]} 12. h4 {[%emt 0:06:14]} b6 {[%emt 0:05:36]} 13. g3 {[%emt 0:04:37]} Bd7 {[%emt 0:03:38]} 14. Re1 {[%emt 0:01:44]} O-O-O {[%emt 0:05:28]} 15. Bf1 {[%emt 0:01:38]} Ne7 {[%emt 0:06:33]} 16. Bh3 {[%emt 0:08:45]} Nf5 {[%emt 0:04:47]} 17. Kg2 {[%emt 0:01:33]} Rdg8 {[%emt 0:05:34]} 18. Qe2 {[%emt 0:09:03]} Kb7 {[%emt 0:06:18]} 19. Rh1 {[%emt 0:06:50]} Qa4 {[%emt 0:03:11]} 20. Qd1 {[%emt 0:01:01]} Be7 {[%emt 0:03:23]} 21. Rb2 {[%emt 0:02:51]} Qa3 {[%emt 0:05:07]} 22. Qc1 {[%emt 0:00:47]} Qa5 {[%emt 0:00:07]} 23. Qd1 {[%emt 0:01:25]} g5 {[%emt 0:01:47]} 24. Bxf5 {[%emt 0:07:57]} exf5 {[%emt 0:00:12]} 25. hxg5 {[%emt 0:00:08]} hxg5 {[%emt 0:00:10]} 26. Rxh8 {[%emt 0:00:14]} Rxh8 {[%emt 0:00:01]} 27. Bxg5 {[%emt 0:02:48]} Qxc3 {[%emt 0:04:03]} 28. Qa1 {[%emt 0:02:53]} Qa3 {[%emt 0:00:06]} 29. c3 {[%emt 0:01:16]} Kc7 {[%emt 0:08:07]} 30. Qc1 {[%emt 0:02:29]} Rh5 {[%emt 0:01:43]} 31. Bxe7 {[%emt 0:01:55]} Qxe7 {[%emt 0:00:01]} 32. Qf4 {[%emt 0:01:06]} Kb7 {[%emt 0:01:47]} 33. Rb1 {[%emt 0:01:40]} Qa3 {[%emt 0:02:31]} 34. Qd2 {[%emt 0:00:59]} f4 {[%emt 0:03:25]} 35. Rh1 {[%emt 0:02:08]} Rxh1 {[%emt 0:00:53]} 36. Kxh1 {[%emt 0:00:02]} fxg3 {[%emt 0:00:33]} 37. fxg3 {[%emt 0:00:02]} Ka6 {[%emt 0:02:07]} 38. Ng5 {[%emt 0:02:15]} Qf8 {[%emt 0:00:40]} 39. Qf4 {[%emt 0:02:31]} Qh6+ {[%emt 0:00:40]} 40. Kg1 {[%emt 0:01:31]} Qg6 {[%emt 0:04:15]} 41. Qxf7 {[%emt 0:06:44]} Qxg5 {[%emt 0:00:56]} 42. Qxd7 {[%emt 0:00:08]} Qxg3+ {[%emt 0:00:10]} 43. Kh1 {[%emt 0:00:28]} Qxc3 {[%emt 0:02:38]} 44. e6 {[%emt 0:00:55]} Qa1+ {[%emt 0:00:50]} 45. Kg2 {[%emt 0:00:36]} Qxa2+ {[%emt 0:00:01]} 46. Kg3 {[%emt 0:00:36]} Qb3+ {[%emt 0:00:29]} 47. Kg4 {[%emt 0:00:59]} Qd1+ {[%emt 0:00:54]} 48. Kf5 {[%emt 0:00:35]} Qh5+ {[%emt 0:03:18]} 49. Kf6 {[%emt 0:00:52]} Qh8+ {[%emt 0:00:25]} 50. Kf7 {[%emt 0:02:20]} Qh7+ {[%emt 0:01:02]} 51. Kf8 {[%emt 0:00:26]} Qh8+ {[%emt 0:00:51]} 52. Kf7 {[%emt 0:00:52]} Qh7+ {[%emt 0:01:01]} 53. Kf8 {[%emt 0:00:24]} Qh8+ {[%emt 0:00:05]} 54. Kf7 {[%emt 0:05:24]} Qh7+ 55. Kf6 {[%emt 0:00:30]} Qh8+ {[%emt 0:04:07]} 56. Kf5 {[%emt 0:00:30]} Qh5+ {[%emt 0:00:30]} 1/2-1/2

[Event "Lliga Catalana 2024"]
[Site "Catalonia"]
[Date "2024.03.02"]
[Round "7.1"]
[White "Asis Gargatagli, Hipolito"]
[Black "Castillo Dalmau, Albert"]
[Result "1-0"]
[ECO "B12"]
[WhiteElo "2493"]
[BlackElo "2313"]
[Annotator "TA"]
[PlyCount "77"]
[EventDate "2024.01.18"]
[EventType "team-tourn"]
[EventCountry "ESP"]
[SourceTitle "playchess.com"]
[Source "ChessBase"]
[SourceQuality "1"]
[TimeControl "5400+30"]

{[%evp 14,76,22,13,27,21,35,20,108,118,105,94,180,180,179,148,162,135,156,157,160,153,176,160,189,194,190,203,191,197,203,191,254,268,389,352,387,390,409,295,1245,1411,1422,1346,1315,1357,1435,1408,887,881,29988,29989,29989,29990,29991,29992,29992,29993,29993,29994,29997,29998,29998,29999,29999]} 1. e4 {[%emt 0:00:04]} c6 {[%emt 0:04:40]} 2. d4 {[%emt 0:00:14]} d5 {[%emt 0:00:06]} 3. e5 {[%emt 0:00:08]} Bf5 {[%emt 0:00:07]} 4. Nf3 {[%emt 0:00:27]} e6 {[%emt 0:00:05]} 5. Be2 {[%emt 0:00:10]} Nd7 {[%emt 0:01:02]} 6. O-O {[%emt 0:00:34]} Ne7 {[%emt 0:01:03]} 7. c3 {[%emt 0:00:47]} h6 {[%emt 0:04:33]} 8. Na3 {[%emt 0:04:51]} Bh7 {[%emt 0:07:39]} 9. Nc2 {[%emt 0:03:55]} c5 {[%emt 0:07:27]} 10. dxc5 {[%emt 0:06:57]} Nc6 {[%emt 0:04:01]} (10... Nxc5 $11 {remains equal.} 11. Nfd4 a6) 11. b4 $16 {[%emt 0:01:07]} Be7 {[%emt 0:10:46]} 12. Ncd4 {[%emt 0:11:47]} O-O {[%emt 0:03:28]} (12... Ncxe5 $16 13. Nxe5 Nxe5) 13. Nxc6 $18 {[%emt 0:15:01]} bxc6 {[%emt 0:00:02]} 14. Bf4 {[%emt 0:00:32]} a5 {[%emt 0:01:49]} 15. a3 {[%emt 0:05:50][%cal Ba2a3,Ba3b4][%mdl 32]} Qc7 {[%emt 0:06:14]} 16. Bd3 {[%emt 0:04:19]} Bxd3 {[%emt 0:01:52]} 17. Qxd3 {[%emt 0:00:12]} Ra7 {[%emt 0:00:40]} 18. Nd4 {[%emt 0:02:46]} axb4 {[%emt 0:09:25]} 19. axb4 {[%emt 0:00:47] Rxa7 would now be deadly.} Rfa8 {[%emt 0:00:12]} 20. Rae1 {[%emt 0:10:07]} Nf8 {[%emt 0:06:24]} 21. Bc1 {[%emt 0:02:40]} Qd7 {[%emt 0:06:11]} 22. f4 {[%emt 0:04:05]} f5 {[%emt 0:01:06]} (22... Bd8 $142 23. f5 exf5 24. Nxf5 Qe6) 23. Qh3 {[%emt 0:05:49]} Kh7 {[%emt 0:02:32]} (23... Ng6 $142 24. Qh5 Nf8) 24. g4 {[%emt 0:06:28]} g6 {[%emt 0:01:27]} 25. Kh1 {[%emt 0:01:01]} Ra2 {[%emt 0:01:31]} 26. Rg1 {[%emt 0:04:08]} R8a6 $2 {[%emt 0:02:12]} (26... Rf2 27. gxf5 exf5) 27. gxf5 {[%emt 0:01:41]} exf5 {[%emt 0:00:27]} 28. e6 {[%emt 0:00:39]} Qe8 {[%emt 0:00:48] [#]} 29. Nxf5 $1 {[%emt 0:01:11][%mdl 512]} gxf5 {[%emt 0:00:10]} 30. Qxf5+ {[%emt 0:00:06]} Ng6 {[%emt 0:00:03]} 31. Qh5 {[%emt 0:00:29] White threatens f5 and mate.} Rc2 {[%emt 0:05:17]} 32. f5 {[%emt 0:00:45][%csl LRg6,LRh6] White mates.} Rxc1 {[%emt 0:02:43]} 33. Rxc1 {[%emt 0:00:33]} Ra2 {[%emt 0:00:55]} 34. Rxg6 {[%emt 0:01:36][%csl Gg6][%cal Rh5h6]} Qf8 {[%emt 0:00:09]} 35. Rcg1 {[%emt 0:01:23]} Bf6 {[%emt 0:01:43] [#]} 36. e7 $1 {[%emt 0:00:31]} Bxe7 {[%emt 0:00:24] [#]} (36... Rxh2+ 37. Qxh2) 37. Rxh6+ $3 {[%emt 0:00:12][%mdl 512]} Qxh6 {[%emt 0:00:09]} 38. Qf7+ {[%emt 0:00:04]} Kh8 {[%emt 0:00:04]} 39. Rg8# {[%emt 0:06:04] Black did not feel at home in the position after the opening.   Weighted Error Value: White=0.09 (flawless) /Black=0.36.  Mistake:       	---       	Black=5      OK:         	White=13    	Black=4      Best:        	White=1     	Black=1} 1-0